bitfinex-derivatives/quotes_BNBF0:USTF0_20250413
["timestamp","ask_amount","ask_price","bid_price","bid_amount"]
[1744559975975,0.34216108,584.52,583.43,0.34280033]
[1744559976172,0.34216108,584.52,583.44,0.31455229]
[1744559976371,0.34216108,584.52,583.45,0.34278858]
[1744559976775,0.34216108,584.52,583.46,0.31455255]
[1744559976975,0.34216108,584.52,583.47,0.34277683]
[1744559977277,0.34216108,584.52,583.48,0.31455255]
[1744559977476,0.34216108,584.52,583.49,0.34276508]
[1744559977676,0.34216108,584.52,583.49,1.08276508]
[1744559977975,0.34216108,584.52,583.5,0.31455255]
[1744559978276,0.34216108,584.52,583.51,0.34275333]
[1744559978477,0.34216108,584.52,583.52,0.31455255]
[1744559978678,0.34216108,584.52,583.53,0.34274158]
[1744559979077,0.34216108,584.52,583.54,0.31455255]
[1744559979373,0.34216108,584.52,583.55,0.34272984]
[1744559979578,0.34216108,584.52,583.56,0.31455255]
[1744559979778,0.34216108,584.52,583.57,0.65727064]
[1744559979978,0.34216108,584.52,583.58,0.31455255]
[1744559980179,0.34216108,584.52,583.59,0.31455255]
[1744559980374,0.34216108,584.52,583.6,0.31455255]
[1744559980574,0.34216108,584.52,583.61,0.31455255]
[1744559980777,0.34216108,584.52,583.58,0.31455255]
[1744559980978,0.34216108,584.52,583.59,0.31455255]
[1744559981178,0.34216108,584.52,583.6,0.31455255]
[1744559981479,0.34216108,584.52,583.61,0.31455255]
[1744559981780,0.34216108,584.52,583.62,0.31455255]
[1744559982074,0.34216108,584.52,583.63,0.31455255]
[1744559982279,0.34216108,584.52,583.58,0.31455255]
[1744559982478,0.34216108,584.52,583.59,0.31455255]
[1744559982674,0.34216108,584.52,583.58,0.31455255]
[1744559983575,0.34216108,584.52,583.59,0.31455646]
[1744559983776,0.34216108,584.52,583.6,0.31455646]
[1744559983981,0.34216108,584.52,583.58,0.31455646]
[1744559984177,0.34216108,584.52,583.59,0.31455646]
[1744559984479,0.34216108,584.52,583.57,0.34271809]
[1744559984480,0.34216108,584.52,583.6,0.31455646]
[1744559984682,0.34216108,584.52,583.58,0.31455646]
[1744559984882,0.34216108,584.52,583.59,0.31455646]
[1744559985083,0.34216108,584.52,583.57,0.34271809]
[1744559985384,0.34216108,584.52,583.58,0.31455779]
[1744559996282,0.34216108,584.52,583.59,0.31462696]
[1744559996487,0.34216108,584.52,583.58,0.31462696]
[1744559996684,0.34216108,584.52,583.59,0.31462696]
[1744559996887,0.34216108,584.52,583.58,0.31462696]
[1744559997187,0.34216108,584.52,583.59,0.31462696]
[1744559997391,0.34216108,584.52,583.58,0.31462696]
[1744559997890,0.34216108,584.52,583.59,0.31462751]
[1744559998189,0.34216108,584.52,583.6,0.31462751]
[1744559998590,0.34216108,584.52,583.61,0.31462751]
[1744559998789,0.34216108,584.52,583.58,0.31462751]
[1744559998989,0.34216108,584.52,583.59,0.31462751]
[1744559999191,0.34216108,584.52,583.58,0.31462751]
[1744559999394,0.34216108,584.52,583.59,0.31462751]
[1744559999590,0.34216108,584.52,583.58,0.31462751]
[1744560000992,0.34216108,584.52,583.57,0.34271809]
[1744560001997,0.34216108,584.52,583.58,0.31464451]
[1744560003796,0.34216108,584.52,583.59,0.52]
[1744560004296,0.34216108,584.52,583.6,0.31465153]
[1744560005694,0.34216108,584.52,583.61,0.31464791]
[1744560005893,0.34216108,584.52,583.62,0.31464791]
[1744560006091,0.34216108,584.52,583.6,0.31464791]
[1744560006293,0.34216108,584.52,583.61,0.31464791]
[1744560006497,0.34216108,584.52,583.62,0.31464791]
[1744560007197,0.34216108,584.52,583.63,0.637]
[1744560007395,0.34216108,584.52,583.64,0.31465263]
[1744560008898,0.34216108,584.52,583.65,0.31464977]
[1744560009096,0.34216108,584.52,583.64,0.31464977]
[1744560009295,0.34216108,584.52,583.63,0.637]
[1744560009296,0.34216108,584.52,583.65,0.31464977]
[1744560009594,0.34216108,584.52,583.66,0.31464977]
[1744560009795,0.34216108,584.52,583.67,0.31464977]
[1744560009998,0.34216108,584.52,583.64,0.31464977]
[1744560010198,0.34216108,584.52,583.65,0.31464977]
[1744560010494,0.34216108,584.52,583.64,0.31464977]
[1744560010699,0.34216108,584.52,583.65,0.31464977]
[1744560010900,0.34216108,584.52,583.64,0.31464977]
[1744560011096,0.34216108,584.52,583.63,0.637]
[1744560011097,0.34216108,584.52,583.65,0.96164977]
[1744560011296,0.34216108,584.52,583.66,0.31464977]
[1744560011999,0.34216108,584.52,583.65,0.647]
[1744560012504,0.34216108,584.52,583.66,0.31465312]
[1744560012801,0.34216108,584.52,583.65,0.647]
[1744560012998,0.34216108,584.52,583.66,0.31465028]
[1744560014202,0.34216108,584.52,583.65,0.647]
[1744560015505,0.34216108,584.52,583.66,0.31464466]
[1744560015805,0.34216108,584.52,583.65,0.647]
[1744560016005,0.34216108,584.52,583.66,0.31464458]
[1744560016301,0.34216108,584.52,583.65,0.647]
[1744560018107,0.62893826,591.73,583.66,0.31464919]
[1744560018303,0.29607597,591.72,583.66,0.31464919]
[1744560018502,0.29607597,591.71,583.66,0.31464919]
[1744560018704,0.29607597,591.7,583.66,0.31464919]
[1744560019004,0.29607597,591.69,583.66,0.31464919]
[1744560019202,0.29607597,591.68,583.66,0.31464919]
[1744560019507,0.29607597,591.67,583.66,0.31464919]
[1744560019807,0.62893826,591.73,583.66,0.31464919]
[1744560019808,0.29607597,591.66,583.66,1.06764919]
[1744560020107,0.62893826,591.23,583.67,0.31464977]
[1744560020303,0.29607797,591.22,583.67,0.31464977]
[1744560020504,0.29607797,591.21,583.67,0.31464977]
[1744560020702,0.29607797,591.2,583.67,0.31464977]
[1744560021007,0.29607797,591.19,583.67,0.31464977]
[1744560021206,0.29607797,591.18,583.67,0.31464977]
[1744560021508,0.29607797,591.17,583.67,0.31464977]
[1744560021704,0.29607797,591.16,583.67,0.31464977]
[1744560022006,0.29607797,591.15,583.67,0.31464977]
[1744560022208,0.29607797,591.14,583.67,0.31464977]
[1744560022405,0.29607797,591.13,583.67,0.31464977]
[1744560022607,0.29607797,591.12,583.67,0.31464977]
[1744560022807,0.258,591.22,583.67,0.31464977]
[1744560022808,0.29607797,591.11,583.67,0.31464977]
[1744560023008,0.29607797,591.1,583.67,0.31464977]
[1744560023205,0.258,591.22,583.66,0.753]
[1744560023409,0.29605643,591.21,583.67,0.31465462]
[1744560023603,0.29605643,591.2,583.67,0.31465462]
[1744560023809,0.29605643,591.19,583.67,0.31465462]
[1744560024006,1.30492647,585.23,583.67,0.31465462]
[1744560024209,0.29605643,585.22,583.67,0.31465462]
[1744560024413,0.29605643,585.21,583.67,0.31465462]
[1744560024613,0.29605643,585.2,583.67,0.31465462]
[1744560024914,0.29605643,585.19,583.67,0.31465462]
[1744560025212,0.29605643,585.18,583.67,0.31465462]
[1744560025412,0.29605643,585.17,583.67,1.63765462]
[1744560025613,0.29605643,585.16,583.68,0.31465462]
[1744560025912,0.29605643,585.15,583.68,0.31465462]
[1744560026114,0.29605643,585.14,583.68,0.31465462]
[1744560026309,0.29605643,585.13,583.68,0.31465462]
[1744560026511,0.29604843,585.12,583.69,0.31465321]
[1744560026710,0.29604843,585.11,583.68,0.31465321]
[1744560026912,1.30492647,585.06,583.68,0.31465321]
[1744560027206,0.29604843,585.05,583.68,0.31465321]
[1744560029516,0.29604843,585.14,583.68,0.31465321]
[1744560030415,0.29604843,585.13,583.68,0.31465321]
[1744560030609,0.29604843,585.14,583.68,0.31465321]
[1744560030813,0.29604843,585.13,583.68,0.31465321]
[1744560031115,1.30492647,585.15,583.67,2.035]
[1744560031415,0.295964,585.14,583.68,0.31461121]
[1744560031613,0.295964,585.13,583.68,0.31461121]
[1744560031812,0.295964,585.12,583.68,0.31461121]
[1744560032013,0.295964,585.11,583.68,0.31461121]
[1744560032309,1.30492647,585.15,583.68,0.31461121]
[1744560032310,0.295964,585.1,583.68,0.31461121]
[1744560032516,0.295964,585.09,583.68,0.31461121]
[1744560032712,1.60089047,585.08,583.68,0.31461121]
[1744560033015,0.295964,585.07,583.68,0.31461121]
[1744560033216,0.295964,585.06,583.68,0.31461121]
[1744560033415,0.295964,585.07,583.68,0.31461121]
[1744560033614,0.295964,585.06,583.68,0.31461121]
[1744560033814,0.295964,585.05,583.68,0.31461121]
[1744560034016,0.295964,585.04,583.68,0.31461121]
[1744560034214,0.295964,585.07,583.68,0.31461121]
[1744560034411,0.29593892,585.06,583.69,0.31460581]
[1744560034612,1.30492647,585.01,583.7,0.31460581]
[1744560034812,0.29593892,585.0,583.71,0.31460581]
[1744560035012,0.29593892,585.0,583.68,0.31460581]
[1744560035212,0.29593892,585.0,583.69,0.31460581]
[1744560035420,0.29593892,585.0,583.67,2.035]
[1744560035421,0.29593892,585.0,583.68,0.31460581]
[1744560037614,0.29593892,585.02,583.68,0.31460581]
[1744560037818,0.29593892,585.01,583.68,0.31460581]
[1744560038012,0.29593892,585.02,583.68,0.31460581]
[1744560038215,0.29593892,585.01,583.68,0.31460581]
[1744560038412,0.29593892,585.02,583.68,0.31460581]
[1744560038618,0.29593892,585.01,583.68,0.31460581]
[1744560038817,0.29593892,585.02,583.68,0.31460581]
[1744560039114,1.30492647,585.03,583.67,2.035]
[1744560039314,0.29592978,585.02,583.68,0.31457501]
[1744560039517,0.29592978,585.31,583.68,0.31457501]
[1744560039723,0.29592978,585.3,583.68,0.31457501]
[1744560039924,0.29592978,586.8,583.68,0.31457501]
[1744560040221,0.29592978,586.79,583.68,0.31457501]
[1744560040420,0.29592978,586.78,583.68,0.31457501]
[1744560040616,0.29592978,586.78,583.67,2.035]
[1744560040821,0.29596493,587.32,583.68,0.31454106]
[1744560041020,0.29596493,587.31,583.68,0.31454106]
[1744560041218,0.29596493,587.3,583.68,0.31454106]
[1744560041423,0.29596493,587.29,583.68,0.31454106]
[1744560041624,0.29596493,587.28,583.68,0.31454106]
[1744560041827,0.29596493,587.27,583.68,0.31454106]
[1744560042120,0.29596493,587.26,583.68,0.31454106]
[1744560042325,0.29598972,587.25,583.69,0.31449259]
[1744560042526,0.29598972,587.24,583.68,0.31449259]
[1744560042723,0.29598972,587.23,583.7,0.793]
[1744560042923,0.29598972,587.22,583.71,0.31449259]
[1744560043125,1.30455175,585.4,583.71,0.31449259]
[1744560043322,0.29598972,585.39,583.71,0.31449259]
[1744560044325,0.29598972,586.85,583.71,0.31449259]
[1744560044625,0.29598972,586.84,583.71,0.31449259]
[1744560044830,0.34089553,586.69,583.73,0.34262415]
[1744560045132,0.29598972,586.68,583.74,0.31449259]
[1744560045432,0.34098271,586.54,583.76,0.34260655]
[1744560045627,0.29598972,586.53,583.77,0.31449259]
[1744560045831,0.29598972,586.52,583.77,0.31449259]
[1744560046130,0.29598972,586.51,583.77,0.31449259]
[1744560046330,0.29598972,586.5,583.77,0.31449259]
[1744560046526,0.29598972,586.49,583.77,0.31449259]
[1744560046727,0.29598972,586.48,583.77,0.31449259]
[1744560046931,0.29598972,586.47,583.77,0.31449259]
[1744560047332,0.29598972,586.46,583.77,0.31449259]
[1744560047533,0.29598972,586.45,583.77,1.05749259]
[1744560047732,0.29598972,586.44,583.78,0.31449259]
[1744560048132,1.30136864,585.73,583.78,0.31449259]
[1744560048328,0.29598972,585.72,583.78,0.31449259]
[1744560048535,1.30136864,585.73,583.78,0.55]
[1744560048734,0.29587896,585.71,583.79,0.31448509]
[1744560048935,0.29587896,585.7,583.79,0.31448509]
[1744560049234,0.29587896,585.69,583.79,0.31448509]
[1744560049735,0.29587896,585.68,583.8,0.34258307]
[1744560049934,2.21413414,585.49,583.81,0.31448509]
[1744560050230,0.29587896,585.48,583.82,0.34257134]
[1744560050429,0.34161172,585.46,583.83,0.31448509]
[1744560050629,0.29587896,585.45,583.84,0.3425596]
[1744560050835,0.34162922,585.43,583.85,0.31448509]
[1744560051034,0.29587896,585.42,583.85,0.31448509]
[1744560051530,0.34162922,585.43,583.84,0.3425596]
[1744560054137,0.29595126,585.42,583.85,0.3144291]
[1744560054437,0.3416409,585.41,583.87,0.342542]
[1744560054737,0.29595126,585.4,583.88,0.3144291]
[1744560054932,0.34165257,585.39,583.89,0.34253027]
[1744560055138,0.29595183,585.38,583.9,0.31442948]
[1744560056442,0.34166424,585.37,583.91,0.34251853]
[1744560056639,0.29595183,585.36,583.92,0.31442948]
[1744560056841,0.29595183,585.36,583.93,0.3425068]
[1744560057040,0.34167592,585.35,583.94,0.31442948]
[1744560057240,0.29595183,585.34,583.94,0.31442948]
[1744560057541,0.29595183,585.34,583.95,0.34249507]
[1744560057741,0.29595183,585.33,583.96,0.31442948]
[1744560058045,0.34167592,585.35,583.95,0.34249507]
[1744560058239,0.29592503,585.34,583.96,0.31443759]
[1744560058437,0.34168759,585.33,583.97,0.34248334]
[1744560058640,0.29592503,585.32,583.98,0.31443759]
[1744560058936,0.29592503,585.32,583.99,0.34247161]
[1744560059142,0.29592503,585.32,584.0,0.31443759]
[1744560059645,0.34169927,585.31,584.0,0.31443759]
[1744560059838,0.29592503,585.3,584.0,0.31443759]
[1744560060138,0.34171094,585.29,584.0,0.31443759]
[1744560060337,0.29592503,585.28,584.0,0.31443759]
[1744560060543,0.34172262,585.27,584.0,0.31443759]
[1744560060742,0.29592503,585.26,584.0,0.31443759]
[1744560061045,0.63762148,585.25,584.01,0.31445091]
[1744560061343,0.63762732,585.24,584.02,0.31445091]
[1744560061543,0.29588718,585.23,584.0,0.31445091]
[1744560061842,0.34175181,585.22,584.01,0.31445091]
[1744560062044,0.34175181,585.22,584.0,0.31445091]
[1744560062045,0.29588718,585.21,584.0,0.31445091]
[1744560062243,0.29588718,585.21,584.01,0.31445091]
[1744560062542,0.6376421,585.2,584.02,0.31445906]
[1744560062741,0.29587861,585.19,584.03,0.31445906]
[1744560062943,0.29587861,585.19,584.02,0.719]
[1744560063239,0.29587861,585.19,584.03,0.31445906]
[1744560063942,0.34176349,585.2,584.02,0.719]
[1744560064141,0.29583172,585.19,584.03,0.31445017]
[1744560065548,0.34176349,585.2,584.02,0.719]
[1744560065739,0.29579625,585.19,584.03,0.3144453]
[1744560067143,0.34176349,585.2,584.02,0.719]
[1744560067336,0.29581681,585.19,584.03,0.65688405]
[1744560067642,0.29581681,585.19,584.04,0.65687818]
[1744560067845,0.29581681,585.19,584.05,0.31443589]
[1744560068042,1.09681681,585.19,584.05,0.31443589]
[1744560068242,0.29581681,585.18,584.05,0.31443589]
[1744560071243,0.29581681,585.18,584.06,0.34243057]
[1744560071443,0.29581681,585.18,584.07,0.31443589]
[1744560071841,0.29581681,585.18,584.08,0.596]
[1744560072045,0.29581681,585.18,584.09,0.65684887]
[1744560072347,0.29581681,585.18,584.1,0.65684301]
[1744560072542,0.29581681,585.18,584.11,0.31443589]
[1744560072745,0.29581681,585.18,584.12,0.34239539]
[1744560072944,0.29581681,585.18,584.13,0.31443589]
[1744560073544,0.29581681,585.18,584.14,0.74]
[1744560074051,0.29581681,585.18,584.15,0.31440794]
[1744560074655,0.59353261,585.18,584.15,0.31440794]
[1744560074852,0.29581681,585.17,584.15,0.31440794]
[1744560075650,0.29581681,585.17,584.15,1.04640794]
[1744560075848,0.29581681,585.17,584.16,0.31440794]
[1744560076454,0.29581681,585.18,584.16,0.31440794]
[1744560076654,0.261,585.16,584.16,1.12740794]
[1744560076950,0.29581681,585.15,584.16,0.813]
[1744560078156,0.261,585.16,584.16,0.813]
[1744560078455,0.2956686,585.15,584.16,0.813]
[1744560078955,0.2956686,585.15,584.17,0.31440789]
[1744560079851,0.29573889,585.14,584.18,0.31440789]
[1744560080051,0.29573889,585.15,584.17,0.31440789]
[1744560080453,0.29573889,585.15,584.17,0.81940789]
[1744560080650,0.29573889,585.15,584.18,0.31440789]
[1744560081756,0.29573889,585.15,584.17,0.505]
[1744560082663,0.261,585.16,584.17,0.505]
[1744560085666,0.261,585.16,584.17,1.198]
[1744560086668,0.29582566,585.15,584.18,0.31439685]
[1744560088673,0.732,585.14,584.18,0.31439685]
[1744560088971,0.29582566,585.13,584.18,0.31439685]
[1744560089273,0.732,585.14,584.17,1.198]
[1744560089673,0.732,585.14,584.18,0.34236023]
[1744560091978,0.732,585.14,584.19,0.31432166]
[1744560092275,0.71613635,585.14,584.2,0.34234851]
[1744560092583,0.71613635,585.14,584.21,0.31432166]
[1744560094572,0.71613635,585.14,584.22,0.34233679]
[1744560094776,0.71613635,585.14,584.23,0.31432166]
[1744560095075,0.71613635,585.14,584.24,0.34232507]
[1744560095269,0.71613635,585.14,584.25,0.31432166]
[1744560095875,0.71613635,585.14,584.24,0.89332507]
[1744560096076,0.71613635,585.14,584.26,0.562]
[1744560096375,0.71613635,585.14,584.27,0.31427485]
[1744560096874,0.71613635,585.14,584.28,0.34230163]
[1744560097080,0.71613635,585.14,584.29,0.31427485]
[1744560097272,0.71613635,585.14,584.3,0.34228991]
[1744560097477,0.261,585.16,584.3,0.34228991]
[1744560097777,0.261,585.16,584.31,0.31428182]
[1744560097977,0.261,585.16,584.32,0.3422782]
[1744560098276,0.261,585.16,584.33,0.31428182]
[1744560098979,0.261,585.16,584.32,0.3422782]
[1744560099178,0.261,585.16,584.33,0.31427378]
[1744560100579,0.29756179,585.46,584.32,0.3422782]
[1744560100779,0.29663578,585.45,584.33,0.31427489]
[1744560101377,0.29663578,585.45,584.33,0.65654723]
[1744560101579,0.29663578,585.45,584.34,0.31427489]
[1744560102481,0.34162339,585.44,584.33,0.34227234]
[1744560102678,0.29663578,585.43,584.33,0.34227234]
[1744560103482,0.29763814,585.42,584.33,0.34227234]
[1744560103676,0.29663578,585.41,584.33,0.34227234]
[1744560103879,0.29669413,585.4,584.34,0.539]
[1744560104580,0.29669413,585.4,584.35,0.745]
[1744560106087,0.29669413,585.4,584.36,0.707]
[1744560106489,0.29762923,585.39,584.36,0.707]
[1744560106788,0.29669413,585.38,584.36,0.707]
[1744560106985,0.29762923,585.39,584.36,0.707]
[1744560107182,0.2967373,585.38,584.36,0.707]
[1744560109388,0.2967373,585.4,584.36,0.707]
[1744560110192,0.34165257,585.39,584.36,0.707]
[1744560110390,0.29670392,585.38,584.36,0.707]
[1744560110890,0.34166424,585.37,584.36,0.707]
[1744560111091,0.29670392,585.36,584.36,0.707]
[1744560111293,0.34167592,585.35,584.36,0.707]
[1744560111493,0.29670392,585.34,584.36,0.707]
[1744560111694,0.34168759,585.33,584.36,0.707]
[1744560111894,0.2967796,585.32,584.36,0.707]
[1744560112095,0.34169927,585.31,584.36,0.707]
[1744560112392,0.2967796,585.3,584.36,0.707]
[1744560112792,0.34171094,585.29,584.36,0.707]
[1744560112993,0.2967796,585.28,584.36,0.707]
[1744560113195,0.2967796,585.28,584.37,0.655]
[1744560115090,0.34171094,585.29,584.37,0.655]
[1744560115295,0.29674424,585.28,584.37,0.655]
[1744560115496,0.59438492,585.28,584.37,0.655]
[1744560115795,0.29674424,585.27,584.37,0.655]
[1744560117296,0.261,585.26,584.37,0.655]
[1744560117596,0.29674424,585.25,584.37,0.655]
[1744560121597,0.29674424,585.25,584.38,0.56]
[1744560123193,0.261,585.26,584.38,0.56]
[1744560123998,0.261,585.26,584.39,0.895]
[1744560124199,0.29668593,585.25,584.39,0.895]
[1744560126001,0.29668593,585.25,584.4,0.575]
[1744560128002,0.261,585.26,584.4,0.575]
[1744560129909,0.29668259,585.25,584.4,0.575]
[1744560130205,0.29668259,585.25,584.4,1.203]
[1744560131609,0.29668259,585.25,584.4,1.903]
[1744560132915,0.261,585.26,584.4,1.903]
[1744560137121,0.261,585.26,584.4,2.657]
[1744560141824,0.29665552,585.25,584.4,2.657]
[1744560144225,0.261,585.26,584.4,2.657]
[1744560144726,0.261,585.26,584.41,0.34222549]
[1744560144924,0.599,585.25,584.41,0.34222549]
[1744560147428,0.599,585.25,584.41,0.92322549]
[1744560148227,0.599,585.25,584.41,0.91350023]
[1744560148423,0.599,585.25,584.41,1.68750023]
[1744560150030,0.261,585.24,584.41,1.68750023]
[1744560151731,0.261,585.24,584.42,0.31426303]
[1744560152027,0.261,585.24,584.41,1.68750023]
[1744560152232,0.261,585.24,584.42,0.31426304]
[1744560152931,0.261,585.24,584.42,1.19426304]
[1744560153130,0.261,585.24,584.43,0.31426304]
[1744560153832,0.261,585.24,584.42,0.88]
[1744560156125,0.261,585.24,584.42,1.448]
[1744560158731,0.261,585.24,584.43,0.31427032]
[1744560159433,0.584,585.23,584.42,1.448]
[1744560161933,0.584,585.23,584.42,2.054]
[1744560167445,0.584,585.23,584.43,0.31428886]
[1744560167646,0.29618503,585.22,584.43,0.31428886]
[1744560167944,0.584,585.23,584.42,2.054]
[1744560168143,0.29618545,585.22,584.43,0.31428931]
[1744560169744,0.584,585.23,584.42,2.054]
[1744560170145,0.2961854,585.22,584.43,0.31428926]
[1744560170445,0.2961854,585.22,584.43,0.91528926]
[1744560170740,0.2961854,585.22,584.43,0.601]
[1744560170944,0.2961854,585.22,584.44,0.3142842]
[1744560171244,0.584,585.23,584.43,0.601]
[1744560171446,0.29617993,585.22,584.44,0.31428377]
[1744560171645,0.29617993,585.22,584.43,0.601]
[1744560171848,0.29617993,585.22,584.44,0.3142882]
[1744560172846,0.584,585.23,584.45,0.31427764]
[1744560173147,0.584,585.23,584.46,0.31427764]
[1744560173342,0.584,585.23,584.44,0.31427764]
[1744560174349,0.29618363,585.22,584.44,0.31427764]
[1744560174545,0.584,585.23,584.44,0.31427764]
[1744560175249,0.29618509,585.22,584.44,0.31427764]
[1744560176050,0.584,585.23,584.45,0.971]
[1744560176244,0.296183,585.22,584.46,0.31428682]
[1744560176550,0.296183,585.22,584.45,0.971]
[1744560177547,0.296183,585.22,584.46,0.639]
[1744560180059,0.296183,585.22,584.47,0.746]
[1744560181358,0.296183,585.22,584.48,0.66]
[1744560181761,0.261,585.21,584.48,0.66]
[1744560182155,0.29619362,585.2,584.48,0.66]
[1744560185264,0.261,585.21,584.48,0.66]
[1744560185465,0.29619481,585.2,584.48,0.66]
[1744560187665,0.261,585.21,584.48,0.66]
[1744560191173,0.57,585.2,584.48,0.66]
[1744560191373,0.29624155,585.19,584.48,0.66]
[1744560191573,0.29624155,585.19,584.49,0.707]
[1744560191774,0.57,585.2,584.49,0.707]
[1744560191975,0.29624161,585.19,584.49,0.707]
[1744560193371,0.57,585.2,584.49,0.707]
[1744560193579,0.29624182,585.19,584.5,0.927]
[1744560194382,0.29624182,585.19,584.51,0.569]
[1744560194782,0.29624182,585.19,584.52,0.721]
[1744560196379,0.29622882,585.18,584.52,0.721]
[1744560198490,0.29621637,585.17,584.52,0.721]
[1744560198680,0.29621637,585.18,584.52,0.721]
[1744560199479,0.261,585.19,584.52,0.721]
[1744560202082,0.261,585.19,584.52,1.435]
[1744560210584,0.261,585.19,584.52,2.115]
[1744560210884,0.963,585.19,584.52,2.115]
[1744560215288,0.963,585.19,584.52,2.996]
[1744560215594,0.963,585.19,584.52,3.576]
[1744560226796,0.963,585.19,584.52,4.167]
[1744560296359,0.963,585.19,584.53,0.31415502]
[1744560296755,0.963,585.19,584.47,0.29754016]
[1744560297055,0.963,585.19,584.48,0.31415333]
[1744560298258,0.963,585.19,584.47,0.29754016]
[1744560299654,0.963,585.19,584.48,0.665]
[1744560299854,0.963,585.19,584.48,1.295]
[1744560300059,0.963,585.19,584.48,2.153]
[1744560300260,0.963,585.19,584.49,1.048]
[1744560300460,0.963,585.19,584.49,2.521]
[1744560303262,0.963,585.19,584.5,0.31417877]
[1744560305360,0.963,585.19,584.49,2.521]
[1744560306662,0.963,585.19,584.5,0.31417906]
[1744560310959,0.963,585.19,584.49,2.521]
[1744560316370,0.963,585.19,584.49,1.675]
[1744560316563,0.963,585.19,584.49,1.048]
[1744560316764,0.963,585.19,584.5,0.801]
[1744560318876,0.963,585.19,584.51,0.794]
[1744560319176,0.963,585.19,584.51,1.558]
[1744560328778,0.29622441,585.18,584.51,1.558]
[1744560329574,0.29622441,585.17,584.51,1.558]
[1744560329780,0.29622441,585.16,584.51,1.558]
[1744560329980,0.29763814,585.29,584.51,1.558]
[1744560330180,0.29624228,585.28,584.51,1.558]
[1744560330580,0.29624228,585.28,584.51,0.764]
[1744560331476,1.30550286,585.91,584.51,0.764]
[1744560331477,1.30550286,585.8,584.51,0.764]
[1744560331678,0.3414251,585.78,584.52,0.83]
[1744560331875,0.29754652,585.29,584.52,0.83]
[1744560332077,0.29624228,585.28,584.52,0.83]
[1744560332276,0.29624228,585.77,584.52,0.83]
[1744560332480,0.34144259,585.75,584.52,0.83]
[1744560332682,0.29757197,585.27,584.52,0.83]
[1744560332881,0.29625911,585.26,584.52,0.83]
[1744560333077,0.29625911,585.74,584.52,0.83]
[1744560333378,0.34146008,585.72,584.52,0.83]
[1744560333678,0.29625911,585.71,584.52,0.83]
[1744560333880,0.34147757,585.69,584.52,0.83]
[1744560334082,0.29625911,585.68,584.52,0.83]
[1744560334282,0.34149506,585.66,584.52,0.83]
[1744560334484,0.2962676,585.65,584.52,0.83]
[1744560334682,0.34151255,585.63,584.52,0.83]
[1744560334884,0.2962676,585.62,584.52,0.83]
[1744560335083,0.34153005,585.6,584.52,0.83]
[1744560335281,0.2962676,585.59,584.52,0.83]
[1744560335681,0.34154755,585.57,584.52,0.83]
[1744560335882,0.29628413,585.56,584.52,0.83]
[1744560336185,0.29628413,585.55,584.52,0.83]
[1744560336387,0.29628413,585.54,584.52,0.83]
[1744560336686,0.29628413,585.53,584.52,0.83]
[1744560336886,0.29628413,585.52,584.52,0.83]
[1744560337187,0.29628413,585.51,584.52,0.83]
[1744560337388,0.29628413,585.5,584.52,0.83]
[1744560337582,0.59390063,585.5,584.52,0.83]
[1744560337883,0.34159422,585.49,584.52,0.83]
[1744560340690,0.29762541,585.48,584.52,0.83]
[1744560341389,0.34160588,585.47,584.52,0.83]
[1744560343485,0.29764068,585.46,584.52,0.83]
[1744560343683,0.34161755,585.45,584.52,0.83]
[1744560345694,0.34161755,585.45,584.47,0.764]
[1744560346595,0.29765214,585.44,584.47,0.764]
[1744560346794,0.34162922,585.43,584.47,0.764]
[1744560349696,0.29765469,585.42,584.47,0.764]
[1744560349898,0.3416409,585.41,584.47,0.764]
[1744560352597,0.29765723,585.4,584.47,0.764]
[1744560352792,0.34165257,585.39,584.47,0.764]
[1744560356697,0.29767251,585.38,584.47,0.764]
[1744560356896,0.34167008,585.36,584.47,0.764]
[1744560358698,0.29769033,585.35,584.47,0.764]
[1744560359099,0.34168175,585.34,584.47,0.764]
[1744560360099,0.34168175,585.34,584.26,0.744]
[1744560363103,0.34168175,585.34,584.27,0.548]
[1744560363402,0.602,585.33,584.27,0.548]
[1744560363699,0.34169343,585.32,584.27,0.548]
[1744560364702,0.29772344,585.31,584.27,0.548]
[1744560365102,0.3417051,585.3,584.27,0.548]
[1744560367704,0.29771325,585.29,584.27,0.548]
[1744560367905,0.34171678,585.28,584.27,0.548]